{"text_format":"3","workbook":"xlsx","n_sheets":2,"sheets":["Facture","Société"],"not_rendered":{"images":1,"defined_names":27},"read":"whole","date_system":"1900"}

{"sheet":"Facture","index":0,"n_rows":35,"n_cols":7,"rows_kept":35,"merged":[[1,3,2,4],[3,3,3,4],[4,3,4,4],[5,3,5,4],[23,1,23,3],[24,1,24,3],[25,1,25,3],[26,1,26,3]]}
[null,"FACTURE","0005"]
[null,{"$f":"TODAY()","v":"2022-04-02"},null,{"$f":"TotalFacture","v":79.65},null," ","Société"]
[null,"ÉCHÉANCE DE PAIEMENT :",{"$f":"TODAY()+15","v":"2022-04-17"},null,null," "]
[null,"DANIELLE BRASSEUR",null,"ADVENTURE WORKS"]
[null,"Fabrikam",null,"23 rue des oliviers"]
[null,"1234 rue de la Libération",null,"84100 Orange"]
[null,"33000 Bordeaux"]
[null,"QUANTITÉ","DÉTAILS","PRIX UNITAIRE","TOTAL LIGNE"]
[null,2,"Accessoires",14.95,{"$f":"IFERROR(DétailsFacture[[#This Row],[PRIX UNITAIRE]]*DétailsFacture[[#This Row],[QUANTITÉ]],\"\")","v":{"v":29.9,"d":"29.90"}}]
[null,5,"Rondelles",9.95,{"$f":"IFERROR(DétailsFacture[[#This Row],[PRIX UNITAIRE]]*DétailsFacture[[#This Row],[QUANTITÉ]],\"\")","v":49.75}]
[{"$nulls":4},{"$f":"IFERROR(DétailsFacture[[#This Row],[PRIX UNITAIRE]]*DétailsFacture[[#This Row],[QUANTITÉ]],\"\")","v":0}]
[{"$nulls":4},{"$f":"IFERROR(DétailsFacture[[#This Row],[PRIX UNITAIRE]]*DétailsFacture[[#This Row],[QUANTITÉ]],\"\")","v":0}]
[{"$nulls":4},{"$f":"IFERROR(DétailsFacture[[#This Row],[PRIX UNITAIRE]]*DétailsFacture[[#This Row],[QUANTITÉ]],\"\")","v":0}]
[{"$nulls":4},{"$f":"IFERROR(DétailsFacture[[#This Row],[PRIX UNITAIRE]]*DétailsFacture[[#This Row],[QUANTITÉ]],\"\")","v":0}]
[{"$nulls":4},{"$f":"IFERROR(DétailsFacture[[#This Row],[PRIX UNITAIRE]]*DétailsFacture[[#This Row],[QUANTITÉ]],\"\")","v":0}]
[{"$nulls":4},{"$f":"IFERROR(DétailsFacture[[#This Row],[PRIX UNITAIRE]]*DétailsFacture[[#This Row],[QUANTITÉ]],\"\")","v":0}]
[{"$nulls":4},{"$f":"IFERROR(DétailsFacture[[#This Row],[PRIX UNITAIRE]]*DétailsFacture[[#This Row],[QUANTITÉ]],\"\")","v":0}]
[{"$nulls":4},{"$f":"IFERROR(DétailsFacture[[#This Row],[PRIX UNITAIRE]]*DétailsFacture[[#This Row],[QUANTITÉ]],\"\")","v":0}]
[{"$nulls":4},{"$f":"IFERROR(DétailsFacture[[#This Row],[PRIX UNITAIRE]]*DétailsFacture[[#This Row],[QUANTITÉ]],\"\")","v":0}]
[{"$nulls":4},{"$f":"IFERROR(DétailsFacture[[#This Row],[PRIX UNITAIRE]]*DétailsFacture[[#This Row],[QUANTITÉ]],\"\")","v":0}]
[{"$nulls":4},{"$f":"IFERROR(DétailsFacture[[#This Row],[PRIX UNITAIRE]]*DétailsFacture[[#This Row],[QUANTITÉ]],\"\")","v":0}]
[{"$nulls":4},{"$f":"IFERROR(DétailsFacture[[#This Row],[PRIX UNITAIRE]]*DétailsFacture[[#This Row],[QUANTITÉ]],\"\")","v":0}]
[{"$nulls":4},{"$f":"IFERROR(DétailsFacture[[#This Row],[PRIX UNITAIRE]]*DétailsFacture[[#This Row],[QUANTITÉ]],\"\")","v":0}]
[null,"Remise"]
[null,"Total net",null,null,{"$f":"SUM(DétailsFacture[TOTAL LIGNE])-E24","v":{"v":79.65,"d":"79.65 €"}}]
[null,"TVA"]
[null,{"$f":"REPT(Société_AbréviationVotreDevise,LEN(Société_AbréviationVotreDevise)>0) & \" TOTAL\"","v":"EUR TOTAL"},null,null,{"$f":"IFERROR(E25+E26, \"\")","v":{"v":79.65,"d":"79.65 €"}}]
[null,"DÉTAILS SUR LE PAIEMENT",null,null,"AUTRES INFORMATIONS"]
[null,"Nom du bénéficiaire :",{"$f":" Société_NomBénéficiaireBanque","v":"Adventure Works"},null,{"$f":"IFERROR(Société_VotreNom,\"\")","v":"Fred Altier"}]
[null,"Nom de la banque :",{"$f":"Société_NomBanque","v":"Banque du Vaucluse"},null,{"$f":"IFERROR(\"Téléphone: \" & Société_VotreTéléphone,\"\")","v":"Téléphone: 04 90 25 55 00"}]
[null,"Adresse de la banque :",{"$f":"Société_AdresseBanque","v":"24 rue des lavandiers 84100 Orange"},null,{"$f":"IFERROR(\"Télécopie: \" & Société_VotreTélécopie,\"\")","v":"Télécopie: 04 90 25 55 01"}]
[null,"Numéro de compte :",{"$f":"Société_CompteBanque","v":1234567},null,{"$f":"IFERROR(Société_VotreURL,\"\")","v":"Adventure-Works.com"}]
[null,"Numéro d’acheminement (Code SWIFT)",{"$f":"Société_CodeBanque","v":9876543210},null,{"$f":"IFERROR(Société_VotreEmail,\"\")","v":"Compta@Adventure-Works.com"}]
[null,"Référence de paiement :",{"$f":"AffichageNuméroFacture","v":"0005"},null,{"$f":"IFERROR(IF(LEN(Client_PO),\"Contrat/PO : \" & Client_PO,\"\"),\"\")","v":""}]
[null,{"$f":"UPPER(\"Le paiement doit être effectué par virement bancaire ou par chèque dû à \" & Société_ChèquePayableÀ & \".\")","v":"LE PAIEMENT DOIT ÊTRE EFFECTUÉ PAR VIREMENT BANCAIRE OU PAR CHÈQUE DÛ À ADVENTURE WORKS."}]

{"sheet":"Société","index":1,"n_rows":20,"n_cols":5,"rows_kept":20}
[null,"SOCIÉTÉ"]
[null,"DÉTAILS SUR LA SOCIÉTÉ QUI ÉMET LA FACTURE","VALEUR",null,"Facture"]
[null,"Nom","Fred Altier"]
[null,"Nom de la société","ADVENTURE WORKS"]
[null,"Ligne d’adresse 1","23 rue des oliviers"]
[null,"Ligne d’adresse 2","84100 Orange"]
[null,"Ligne d’adresse 3"]
[null,"Ligne d’adresse 4"]
[null,"Ligne d’adresse 5"]
[null,"Téléphone","04 90 25 55 00"]
[null,"Télécopie","04 90 25 55 01"]
[null,"Site web","Adventure-Works.com"]
[null,"Adresse e-mail","Compta@Adventure-Works.com"]
[null,"Abréviation devise","EUR"]
[null,"Nom du bénéficiaire du virement bancaire","Adventure Works"]
[null,"Nom de la banque","Banque du Vaucluse"]
[null,"Adresse de la banque","24 rue des lavandiers 84100 Orange"]
[null,"Numéro de compte",1234567]
[null,"Numéro d’acheminement (Code SWIFT)",9876543210]
[null,"Veuillez libeller tous les chèques à l’ordre de","Adventure Works"]